[Event "5th Shenzhen Longgang Masters 2024"]
[Site "Shengzhen"]
[Date "2024.03.01"]
[Round "2.3"]
[White "Dubov, Daniil"]
[Black "Giri, Anish"]
[Result "1-0"]
[ECO "D85"]
[WhiteElo "2708"]
[BlackElo "2749"]
[Annotator "TA"]
[PlyCount "79"]
[EventDate "2024.02.28"]
[EventType "tourn"]
[EventCountry "CHN"]
[SourceTitle "playchess.com"]
[Source "ChessBase"]
[SourceQuality "1"]
[TimeControl "40/5400+30:1800+30"]

{[%evp 19,79,0,0,0,0,0,0,0,0,3,6,0,0,0,0,0,0,0,0,-62,0,0,1,-17,-6,-14,-12,0,0,0,0,-31,62,35,58,51,113,101,96,58,116,91,102,91,113,92,113,82,286,292,277,283,1004,1001,5097,5097,5097,5097,4552,4133,1945,1237]} 1. d4 {[%emt 0:00:04]} Nf6 {[%emt 0:00:05]} 2. c4 {[%emt 0:00:08]} g6 {[%emt 0:00:04]} 3. Nc3 {[%emt 0:00:11]} d5 {[%emt 0:00:06]} 4. cxd5 {[%emt 0:00:06]} Nxd5 {[%emt 0:00:03]} 5. e4 {[%emt 0:00:08]} Nxc3 {[%emt 0:00:06]} 6. bxc3 {[%emt 0:00:05]} Bg7 {[%emt 0:00:05]} 7. Nf3 {[%emt 0:00:07]} c5 {[%emt 0:00:09]} 8. Bb5+ {[%emt 0:00:07]} Nc6 {[%emt 0:00:15]} 9. O-O {[%emt 0:00:09]} O-O {[%emt 0:00:15]} 10. Bxc6 {[%emt 0:00:06]} bxc6 {[%emt 0:00:04]} 11. Qc2 {[%emt 0:00:13]} cxd4 {[%emt 0:02:19]} 12. cxd4 {[%emt 0:04:04][%cal Oc1e3]} Bg4 {[%emt 0:00:03]} 13. Ne5 {[%emt 0:00:09] The position is equal.} Qxd4 {[%emt 0:00:03]} 14. Bb2 {[%emt 0:00:07][%cal Bc1b2,Bb2e5,Be5c3][%mdl 32]} Qb6 {[%emt 0:00:07]} 15. Rab1 {[%emt 0:00:16]} Bxe5 {[%emt 0:00:13]} 16. Bxe5 {[%emt 0:00:06]} Qa5 {[%emt 0:00:05]} 17. Bc3 {[%emt 0:00:09]} Qc5 {[%emt 0:00:32]} 18. h3 {[%emt 0:00:09]} Be6 {[%emt 0:00:11][%cal Oe6a2]} 19. Kh2 {[%emt 0:00:04]} (19. Rfc1 $11) 19... Rab8 {[%emt 0:19:32]} (19... Bxa2 $1 $15 20. Rbc1 Be6) 20. Rbc1 $11 {[%emt 0:02:32]} Qc4 {[%emt 0:06:47]} 21. f4 {[%emt 0:02:19] f5 would now be deadly. White is weak on the light squares} Qxa2 {[%emt 0:02:29]} 22. Qd1 $1 {[%emt 0:00:14]} Bc4 {[%emt 0:06:09][%cal Of8d8] ...Rfd8! is the strong threat.} (22... Rbd8 {with more complications.} 23. Qe1 Rd3 24. f5 Bd7) 23. Rf3 {[%emt 0:00:42][%cal Bf1f3,Bf3g3,Bg3a3][%mdl 32]} f6 {[%emt 0:10:05]} 24. Qe1 {[%emt 0:03:41]} Qe2 {[%emt 0:08:02]} 25. Qh4 {[%emt 0:02:03]} Bd3 {[%emt 0:12:22]} (25... Qxe4 $15 26. Re1 Qf5 (26... Be2 $2 27. Rf2 $18)) 26. e5 $1 $14 {[%emt 0:17:58][%cal Re5f6]} Be4 {[%emt 0:07:45]} 27. Rg3 {[%emt 0:01:19][%cal Re5f6]} Rb1 {[%emt 0:16:25]} (27... Rb3 $6 28. exf6 exf6 29. f5 Rxc3 (29... Bxf5 $2 30. Re1 $18) 30. fxg6 (30. Rcxc3 Bxf5 31. Rxc6 Qe5 $14) 30... hxg6 31. Rcxc3 $16) ({Black should try} 27... e6 $14) 28. Rxb1 $16 {[%emt 0:01:08]} Bxb1 {[%emt 0:00:00]} 29. exf6 {[%emt 0:00:18]} exf6 {[%emt 0:00:39]} ({Better is} 29... Rf7 $1 $14) 30. Bxf6 {[%emt 0:00:09] Threatens to win with Be5.} Qe6 {[%emt 0:01:19]} 31. Be5 {[%emt 0:04:16][%mdl 1024] White has strong compensation.} Be4 {[%emt 0:03:28]} 32. Ra3 $1 {[%emt 0:01:37]} Qd7 {[%emt 0:00:25]} 33. Qf2 {[%emt 0:02:56]} Qe7 {[%emt 0:00:31] Black cannot hold the game after this.} (33... Rf7 $16 {might work better.}) 34. Qe3 $1 $18 {[%emt 0:02:32]} ({Weaker is} 34. Qxa7 Qxa7 35. Rxa7 Rd8 $11) (34. Rxa7 Qxe5 35. Qa2+ Bd5 (35... Qd5 36. Qa1 $11) 36. fxe5 Bxa2 37. Rxa2 Rc8 $16) 34... Rf7 {[%emt 0:01:53]} 35. Bb2 {[%emt 0:00:27]} Qb4 {[%emt 0:02:51]} (35... Qd6) 36. Rb3 {[%emt 0:01:00] White is clearly winning.} (36. Rxa7 $2 {is the wrong capture.} Rxa7 (36... Qxb2 37. Ra8+ Rf8 38. Rxf8+ Kxf8 39. Qxe4 $11) 37. Bd4 Rd7 $19) 36... Qc4 {[%emt 0:00:06]} 37. Rb8+ {[%emt 0:00:35]} Rf8 {[%emt 0:00:02]} 38. Qxa7 {[%emt 0:00:17]} Qf7 {[%emt 0:00:07] [#]} 39. Qd4 $1 {[%emt 0:00:20][%csl Gb2][%cal Rd4h8]} Qxf4+ {[%emt 0:01:23] [#]} 40. g3 $1 {[%emt 0:00:00] Weighted Error Value: White=0.08 (flawless) /Black=0.29 (precise) .  Loses game:     	---       	Black=1      Mistake:       	White=1     	Black=5      Inaccurate:     	White=1     	Black=1      OK:         	White=7     	Black=9      Best:        	White=4     	Black=1      Strong:       	White=4     	---} 1-0

[Event "5th Shenzhen Longgang Masters 2024"]
[Site "Shengzhen"]
[Date "2024.03.01"]
[Round "2.4"]
[White "Erigaisi Arjun"]
[Black "Bu, Xiangzhi"]
[Result "0-1"]
[ECO "C43"]
[WhiteElo "2738"]
[BlackElo "2671"]
[Annotator "TA"]
[PlyCount "72"]
[EventDate "2024.02.28"]
[EventType "tourn"]
[EventCountry "CHN"]
[SourceTitle "playchess.com"]
[Source "ChessBase"]
[SourceQuality "1"]
[TimeControl "40/5400+30:1800+30"]

{[%evp 9,72,12,14,-3,1,8,0,-12,-24,-26,-28,-15,-24,-24,-31,-38,-8,-20,-21,-12,-13,-22,0,-44,-52,-39,-47,-27,-22,-27,-35,-41,-6,-17,-16,-25,-11,-20,-10,-86,-89,-198,-196,-206,-209,-227,-232,-215,-242,-221,-228,-264,-272,-457,-428,-619,-652,-1128,-494,-1007,-997,-1093,-1093,-948,-935]} 1. e4 {[%emt 0:00:17]} e5 {[%emt 0:00:24]} 2. Nf3 {[%emt 0:00:07][%cal Bg1f3,Bf3d4,Bd4b5,Bb5c3][%mdl 32]} Nf6 {[%emt 0:00:25]} 3. d4 {[%emt 0:00:08]} Nxe4 {[%emt 0:00:16]} 4. dxe5 {[%emt 0:00:08]} d5 {[%emt 0:00:29]} 5. Nbd2 {[%emt 0:00:17]} Qd7 {[%emt 0:00:32]} 6. Nd4 {[%emt 0:00:18]} Qe7 {[%emt 0:01:02]} 7. N2f3 {[%emt 0:00:18]} Nd7 {[%emt 0:00:47]} 8. Nb5 {[%emt 0:00:16][%csl LRc7,LRd5] The position is equal.} Nb6 {[%emt 0:00:21]} 9. Bd3 {[%emt 0:00:15]} a6 $1 {[%emt 0:02:15]} 10. Nc3 {[%emt 0:00:07]} Bg4 {[%emt 0:00:08][%cal Bc8g4,Bg4h5,Bh5g6][%mdl 32]} 11. O-O {[%emt 0:00:07]} O-O-O {[%emt 0:00:29]} 12. h3 {[%emt 0:00:06]} Bh5 {[%emt 0:00:36]} 13. Qe2 $1 {[%emt 0:00:08][%cal Oc3d5]} Nc5 {[%emt 0:01:14]} 14. Bf5+ {[%emt 0:03:36]} Kb8 $1 {[%emt 0:00:06]} 15. g4 {[%emt 0:01:10]} Bg6 {[%emt 0:00:05]} 16. Bg5 {[%emt 0:01:34]} f6 {[%emt 0:00:15]} 17. exf6 {[%emt 0:00:06]} gxf6 {[%emt 0:00:08]} 18. Qxe7 {[%emt 0:00:07]} Bxe7 {[%emt 0:00:03]} 19. Rfe1 {[%emt 0:00:07]} Bxf5 {[%emt 0:03:41]} 20. gxf5 {[%emt 0:00:19]} d4 {[%emt 0:00:43]} 21. Rxe7 {[%emt 0:49:51][%cal Og5f4] Threatens to win with Bf4!} dxc3 {[%emt 0:00:05]} 22. Bxf6 {[%emt 0:00:05]} Rhg8+ {[%emt 0:00:10]} 23. Kf1 {[%emt 0:00:07]} Nd5 {[%emt 0:00:41][%csl LRe7,LRf6] White must now prevent ...cxb2.} 24. Re5 {[%emt 0:00:06]} (24. Rg7 $2 Nxf6 25. Rxg8 Rxg8 $19) (24. b4 $1 $11 {keeps the balance.}) 24... cxb2 $17 {[%emt 0:13:02] Black is more active.} 25. Rae1 {[%emt 0:00:13]} (25. Rb1 $17 Rd6 (25... Nxf6 26. Rxc5 Ne4 27. Re5 $17) 26. Be7 (26. Rxb2 $2 Nd7 $19) 26... Nxe7 27. Rxc5) 25... Nxf6 $19 {[%emt 0:04:47]} 26. Rxc5 {[%emt 0:00:19] [#]} Rge8 $1 {[%emt 0:02:03] And now ...Rxe1+ would win.} 27. Rb1 {[%emt 0:05:42][%cal Oc5e5]} Ne4 {[%emt 0:00:24]} 28. Rc4 {[%emt 0:00:15]} Rd5 {[%emt 0:00:13]} (28... Rd2 29. Rxe4 (29. Rxb2 $2 Rxf2+ 30. Ke1 Rxf3 $19) 29... Rxe4 30. Nxd2 $18) 29. f6 {[%emt 0:01:54] Strongly threatening f7.} Rf5 {[%emt 0:06:43]} (29... Nxf6 30. Rf4 Nh5 31. Rf7) 30. Kg2 {[%emt 0:02:09]} Nxf6 {[%emt 0:05:57] ...Rg8+ is the strong threat.} 31. Nd4 $2 {[%emt 0:02:12]} (31. Rc3) 31... Rg5+ {[%emt 0:05:27] Black is clearly winning.} 32. Kh2 {[%emt 0:02:31]} (32. Kf3 $142 Nd7 (32... Ne4 33. Nc6+ bxc6 34. Rxb2+ Kc8 35. Rxe4 $11) 33. Rb4) 32... Reg8 {[%emt 0:00:38]} 33. Rb4 {[%emt 0:00:44]} Rg2+ {[%emt 0:01:54]} 34. Kh1 {[%emt 0:00:07]} Ne4 {[%emt 0:00:24][%cal Re4f2]} 35. Nc6+ {[%emt 0:00:08]} Ka8 {[%emt 0:00:03]} 36. Rxe4 {[%emt 0:00:07] [#]} Rg1+ $3 {[%emt 0:00:04][%mdl 512] Weighted Error Value: White=0.52/Black=0.18 (very precise) .  Mistake:       	White=4     	---        Inaccurate:     	White=2     	Black=1      OK:         	White=13    	Black=15     Best:        	---       	Black=5      Strong:       	White=1     	Black=3} 0-1

[Event "5th Shenzhen Longgang Masters 2024"]
[Site "Shengzhen"]
[Date "2024.03.02"]
[Round "3.1"]
[White "Bu, Xiangzhi"]
[Black "Xu, Xiangyu"]
[Result "1/2-1/2"]
[ECO "E36"]
[WhiteElo "2671"]
[BlackElo "2623"]
[Annotator "TA"]
[PlyCount "61"]
[EventDate "2024.02.28"]
[EventType "tourn"]
[EventCountry "CHN"]
[SourceTitle "playchess.com"]
[Source "ChessBase"]
[SourceQuality "1"]
[TimeControl "40/5400+30:1800+30"]

{[%evp 12,61,16,-1,5,7,22,1,21,18,20,16,27,0,25,6,4,8,11,16,16,10,13,13,18,35,39,33,46,14,22,12,8,0,15,5,20,7,0,12,10,6,11,0,38,42,43,44,33,30,47,21]} 1. d4 {[%emt 0:00:04]} Nf6 {[%emt 0:00:12]} 2. c4 {[%emt 0:00:15]} e6 {[%emt 0:00:31]} 3. Nc3 {[%emt 0:01:57]} Bb4 {[%emt 0:00:11]} 4. Qc2 {[%emt 0:02:28]} d5 {[%emt 0:01:59]} 5. a3 {[%emt 0:01:18]} Bxc3+ {[%emt 0:00:11]} 6. Qxc3 {[%emt 0:00:03]} O-O {[%emt 0:00:52]} 7. Nf3 {[%emt 0:03:45]} b6 {[%emt 0:00:14]} 8. Bg5 {[%emt 0:01:28]} Nbd7 {[%emt 0:00:30]} 9. cxd5 {[%emt 0:10:33]} exd5 {[%emt 0:00:07] The position is equal.} 10. Qc6 {[%emt 0:05:50]} Ba6 {[%emt 0:00:17]} 11. Rc1 {[%emt 0:07:47][%cal Of3e5]} Rc8 {[%emt 0:04:21]} 12. Qa4 {[%emt 0:23:30]} Nb8 {[%emt 0:01:14]} 13. e3 {[%emt 0:00:56] Black is weak on the dark squares} (13. g3 $5) 13... Bxf1 {[%emt 0:02:13]} 14. Kxf1 {[%emt 0:00:05][%cal Ob2b4]} ({Don't take} 14. Rxf1 $6 Qe8 15. Qxe8 (15. Qxa7 Ne4 $17) 15... Rfxe8 $16) 14... c5 {[%emt 0:02:24]} 15. g3 {[%emt 0:00:24]} Qd7 {[%emt 0:02:57]} 16. Qxd7 {[%emt 0:00:51]} Nfxd7 {[%emt 0:02:38]} 17. dxc5 {[%emt 0:02:58]} bxc5 {[%emt 0:00:10]} 18. Kg2 {[%emt 0:03:37]} Na6 {[%emt 0:02:16][%cal Bb8a6,Ba6c5,Bc5e4][%mdl 32] [#]} 19. b4 $1 {[%emt 0:01:20]} Rfe8 {[%emt 0:06:21] Inhibits Be7.} 20. bxc5 {[%emt 0:04:18]} (20. b5 $5) 20... Naxc5 {[%emt 0:00:29]} 21. Rhd1 {[%emt 0:00:35]} (21. Bf4 $5) 21... Nb6 {[%emt 0:00:44]} 22. Bf4 {[%emt 0:03:47][%cal Of4b8]} Ne4 {[%emt 0:26:13]} 23. Rc7 {[%emt 0:02:29]} f6 {[%emt 0:01:45] [#] White must now prevent ...g5.} 24. h4 {[%emt 0:02:45]} Rxc7 {[%emt 0:11:54]} 25. Bxc7 {[%emt 0:00:02]} Rc8 {[%emt 0:00:09]} 26. Bxb6 {[%emt 0:00:04]} axb6 {[%emt 0:00:05]} 27. Nd2 {[%emt 0:01:41]} Nd6 {[%emt 0:01:29]} 28. Nb3 {[%emt 0:02:48]} Nc4 {[%emt 0:05:28]} 29. Rxd5 {[%emt 0:01:31]} Nxa3 {[%emt 0:00:06]} 30. Nd4 {[%emt 0:00:10]} Nc2 {[%emt 0:03:33]} 31. Nxc2 {[%emt 0:04:51] Weighted Error Value: White=0.07 (flawless) /Black=0.07 (flawless) .  Inaccurate:     	White=3     	Black=1      OK:         	White=13    	Black=10} 1/2-1/2

[Event "5th Shenzhen Longgang Masters 2024"]
[Site "Shengzhen"]
[Date "2024.03.02"]
[Round "3.2"]
[White "Giri, Anish"]
[Black "Erigaisi Arjun"]
[Result "0-1"]
[ECO "E46"]
[WhiteElo "2749"]
[BlackElo "2738"]
[Annotator "TA"]
[PlyCount "78"]
[EventDate "2024.02.28"]
[EventType "tourn"]
[EventCountry "CHN"]
[SourceTitle "playchess.com"]
[Source "ChessBase"]
[SourceQuality "1"]
[TimeControl "40/5400+30:1800+30"]

{[%evp 25,78,0,0,0,0,0,21,0,-10,-46,-41,-35,0,0,0,-14,0,-37,0,0,0,0,0,0,0,-53,-52,-57,-54,-49,-39,-56,0,0,0,0,0,0,0,0,0,-317,-288,-288,-288,-288,-281,-732,-702,-29988,-29989,-29989,-29990,-29990,-29990]} 1. d4 {[%emt 0:00:02]} Nf6 {[%emt 0:00:19]} 2. c4 {[%emt 0:00:04]} e6 {[%emt 0:00:05]} 3. Nc3 {[%emt 0:00:04]} Bb4 {[%emt 0:00:06]} 4. e3 {[%emt 0:00:07]} O-O {[%emt 0:00:07]} 5. Bd2 {[%emt 0:00:04]} d5 {[%emt 0:01:02]} 6. a3 {[%emt 0:00:20]} Bxc3 {[%emt 0:04:00] E46: Nimzo-Indian: Rubinstein: 4 e3 0-0 5 Ne2 without early Bd3.} 7. Bxc3 {[%emt 0:00:19]} b6 {[%emt 0:00:06]} 8. Nf3 {[%emt 0:01:38]} Ne4 {[%emt 0:04:25]} 9. Qc2 {[%emt 0:14:30]} Ba6 {[%emt 0:01:29]} 10. Bd3 {[%emt 0:05:54]} Nd7 $146 {[%emt 0:09:53]} ({Predecessor:} 10... Ng5 11. h4 Nxf3+ 12. gxf3 Bxc4 13. Bxh7+ Kh8 14. h5 Qf6 15. O-O-O Qxf3 16. Rdg1 Qf6 {0-1 Alrivie,M (1000)-Rajtmajer,A (1000) IECC M email 1998}) 11. Bxe4 {[%emt 0:06:13]} dxe4 {[%emt 0:00:11]} 12. Nd2 {[%emt 0:00:25]} f5 {[%emt 0:01:08]} 13. O-O-O {[%emt 0:00:12]} Bb7 {[%emt 0:05:54]} 14. f4 {[%emt 0:05:11]} Nf6 {[%emt 0:21:09]} 15. Rhg1 {[%emt 0:16:30]} b5 {[%emt 0:16:56]} 16. d5 {[%emt 0:04:38]} (16. g4 $5) 16... exd5 {[%emt 0:00:55]} 17. g4 {[%emt 0:05:28]} fxg4 {[%emt 0:06:58]} 18. cxb5 {[%emt 0:11:24]} c5 {[%emt 0:00:49]} 19. bxc6 {[%emt 0:01:06]} Bxc6 {[%emt 0:00:05]} 20. Nc4 $1 {[%emt 0:00:14]} (20. Bb4 $2 Rc8 21. Kb1 (21. Bxf8 $2 Ba4 $19) 21... Bb5 $19) 20... Rc8 {[%emt 0:03:18]} 21. Ne5 {[%emt 0:00:49]} Bd7 {[%emt 0:00:17]} 22. Kb1 {[%emt 0:00:34]} Bf5 {[%emt 0:00:52]} 23. Qd2 {[%emt 0:00:48]} Qb6 {[%emt 0:01:11]} 24. Bd4 {[%emt 0:01:08]} Qb7 {[%emt 0:00:06]} 25. h3 {[%emt 0:02:50]} ({Better is} 25. Qf2 $11) 25... gxh3 $15 {[%emt 0:01:07]} 26. Rg5 {[%emt 0:00:04]} Ne8 $1 {[%emt 0:00:13]} 27. Rdg1 {[%emt 0:00:06]} Rc7 {[%emt 0:00:53]} 28. Ng4 {[%emt 0:05:45]} Qa6 {[%emt 0:02:05]} (28... Rc6 $1 $15 29. Ne5 Ra6) 29. Qh2 $11 {[%emt 0:02:10]} Bxg4 {[%emt 0:04:10]} 30. R5xg4 {[%emt 0:00:32]} Nf6 {[%emt 0:00:11]} 31. R4g3 {[%emt 0:03:10]} Rfc8 {[%emt 0:05:01]} 32. f5 {[%emt 0:03:18]} h5 {[%emt 0:06:49]} 33. Qxh3 $2 {[%emt 0:06:01][%mdl 8192]} (33. Rg6 $11 Qd3+ 34. Ka2 Qc4+ 35. Ka1) 33... Rc1+ $1 $19 {[%emt 0:01:22]} 34. Rxc1 {[%emt 0:00:05]} Qd3+ {[%emt 0:00:03]} 35. Ka2 {[%emt 0:00:03]} Rxc1 {[%emt 0:00:06]} 36. Rxg7+ $2 {[%emt 0:00:50] [#]} (36. Bxf6 $2 Qc4+ 37. b3 Qc2+ 38. Bb2 Qb1#) (36. Rg2 Qd1 37. b3 Rc2+ 38. Rxc2 Qxc2+ 39. Ka1) 36... Kf8 $1 $19 {[%emt 0:01:01]} (36... Kxg7 37. Qg3+ Kf8 38. Qd6+ Ke8 39. Qe6+ Kd8 40. Qxf6+ Kc7 41. Qe7+ (41. Bxa7 $2 Qc4+ 42. b3 Rc2+ $19) 41... Kc8 42. Qe6+ Kc7 43. Qe7+ (43. Bxa7 $2 Qc4+ 44. b3 Qe2#) 43... Kc8 44. Qf8+ Kd7 45. Qf7+ Kc8 46. Qe8+ Kc7 47. Qf7+ Kc6 48. Qe8+ Kc7 49. Qf7+ Kc8 50. Qe8+ Kc7 $11) 37. a4 {[%emt 0:05:38] [#]} Qd1 $1 {[%emt 0:01:32]} (37... Kxg7 $2 {perishes.} 38. Qg3+ Kf8 39. Qd6+ Ke8 40. Qe6+ Kd8 41. Qxf6+ Ke8 42. Qh8+ (42. Bxa7 Ra1+ 43. Kxa1 Qd1+ 44. Ka2 Qxa4+ 45. Kb1 Qd1+ 46. Ka2 Qa4+ 47. Kb1 Qd1+ 48. Ka2 Qa4+ $11) 42... Kd7 43. Qg7+ Kc8 44. Qf8+ Kb7 45. Qf7+ Rc7 46. Qxd5+ Kc8 47. f6 $18) 38. b3 {[%emt 0:00:17]} Rc2+ {[%emt 0:00:28]} ({And not} 38... Kxg7 39. Qg3+ Qg4 40. Qe5 $11) 39. Ka3 {[%emt 0:00:23]} a5 {[%emt 0:00:07]} ({Worse is} 39... Kxg7 40. Qg3+ Qg4 41. Qe5 $14) 0-1

[Event "5th Shenzhen Longgang Masters 2024"]
[Site "Shengzhen"]
[Date "2024.03.02"]
[Round "3.3"]
[White "Ma, Qun"]
[Black "Dubov, Daniil"]
[Result "1/2-1/2"]
[ECO "D38"]
[WhiteElo "2651"]
[BlackElo "2708"]
[Annotator "TA"]
[PlyCount "61"]
[EventDate "2024.02.28"]
[EventType "tourn"]
[EventCountry "CHN"]
[SourceTitle "playchess.com"]
[Source "ChessBase"]
[SourceQuality "1"]
[TimeControl "40/5400+30:1800+30"]

{[%evp 15,61,27,43,25,35,0,0,0,5,0,18,9,19,16,9,12,6,0,0,0,0,0,0,0,0,0,0,0,0,0,0,0,0,0,0,0,0,0,0,0,0,0,0,0,0,0,0,0]} 1. d4 {[%emt 0:00:11]} Nf6 {[%emt 0:00:11]} 2. c4 {[%emt 0:00:13]} e6 {[%emt 0:00:06]} 3. Nf3 {[%emt 0:00:13]} d5 {[%emt 0:00:10]} 4. Nc3 {[%emt 0:00:13]} Bb4 {[%emt 0:00:26]} 5. Bg5 {[%emt 0:00:36]} O-O {[%emt 0:00:19]} 6. e3 {[%emt 0:00:25]} h6 {[%emt 0:00:09]} 7. Bxf6 {[%emt 0:00:08]} Qxf6 {[%emt 0:00:07]} 8. Rc1 {[%emt 0:00:32]} Nd7 {[%emt 0:00:35]} 9. Qb3 {[%emt 0:11:41]} c5 {[%emt 0:00:54]} 10. a3 {[%emt 0:15:33]} (10. cxd5 {is interesting.} exd5 11. dxc5 a5 12. Qxd5 Nxc5 13. Qd4) 10... cxd4 {[%emt 0:11:31] The position is equal.} 11. Qxb4 {[%emt 0:02:56]} dxc3 {[%emt 0:00:30]} 12. Qxc3 {[%emt 0:03:23]} dxc4 {[%emt 0:01:09]} 13. Bxc4 {[%emt 0:04:21]} Qxc3+ {[%emt 0:00:26]} 14. Rxc3 {[%emt 0:00:07]} Nb6 {[%emt 0:00:05]} 15. Bd3 {[%emt 0:07:06]} Bd7 {[%emt 0:00:50]} 16. Ne5 {[%emt 0:00:53]} Rfc8 {[%emt 0:02:40]} 17. Rxc8+ {[%emt 0:01:49]} Rxc8 {[%emt 0:00:18]} 18. Kd2 {[%emt 0:00:08] Against Rc1} Be8 {[%emt 0:01:27]} 19. Rc1 {[%emt 0:00:11]} Rxc1 {[%emt 0:00:24]} 20. Kxc1 $11 {[%emt 0:00:08][%mdl 4096] Endgame. KBN-KBN} f6 {[%emt 0:00:14]} 21. Nc4 {[%emt 0:02:34]} Nxc4 {[%emt 0:00:11]} 22. Bxc4 {[%emt 0:00:05] KB-KB} Kf7 {[%emt 0:00:06]} 23. Kd2 {[%emt 0:00:18]} Bc6 {[%emt 0:00:11]} 24. g3 {[%emt 0:00:19]} Ke7 {[%emt 0:00:05]} 25. f4 {[%emt 0:00:12]} Kd6 {[%emt 0:00:06]} 26. Kc3 {[%emt 0:00:10]} b6 {[%emt 0:00:06]} 27. b4 {[%emt 0:00:04]} e5 {[%emt 0:00:11]} 28. Bb3 {[%emt 0:00:18]} Bb7 {[%emt 0:00:06]} 29. Bc4 {[%emt 0:00:04]} Bc6 {[%emt 0:00:03]} 30. Bb3 {[%emt 0:00:06]} Bb7 {[%emt 0:00:03]} 31. Bc4 {[%emt 0:00:03] Weighted Error Value: White=0.06 (flawless) /Black=0.03 (flawless) .  Inaccurate:     	White=1     	---        OK:         	White=10    	Black=14} 1/2-1/2

[Event "5th Shenzhen Longgang Masters 2024"]
[Site "Shengzhen"]
[Date "2024.03.02"]
[Round "3.4"]
[White "Yu, Yangyi"]
[Black "Artemiev, Vladislav"]
[Result "1-0"]
[ECO "B12"]
[WhiteElo "2720"]
[BlackElo "2711"]
[Annotator "TA"]
[PlyCount "115"]
[EventDate "2024.02.28"]
[EventType "tourn"]
[EventCountry "CHN"]
[SourceTitle "playchess.com"]
[Source "ChessBase"]
[SourceQuality "1"]
[TimeControl "40/5400+30:1800+30"]

{[%evp 31,115,0,0,0,0,0,22,19,20,12,7,25,20,25,35,35,36,19,27,35,37,18,19,28,28,30,25,18,25,18,18,19,25,26,26,10,32,39,47,0,0,0,52,43,72,100,135,115,108,38,258,265,370,355,535,573,584,576,576,560,508,494,985,951,29972,29973,29973,29974,29974,29975,29975,29976,29976,29977,29977,29978,29978,29979,29979,29980,29980,29981,29981,29982,29982,29983]} 1. e4 {[%emt 0:00:04]} c6 {[%emt 0:00:40]} 2. d4 {[%emt 0:00:21]} d5 {[%emt 0:00:13]} 3. e5 {[%emt 0:00:34]} Bf5 {[%emt 0:00:22]} 4. Nf3 {[%emt 0:00:16]} e6 {[%emt 0:00:26]} 5. Be2 {[%emt 0:00:12]} c5 {[%emt 0:02:02]} 6. O-O {[%emt 0:00:16]} Nc6 {[%emt 0:02:46]} 7. Be3 {[%emt 0:00:12]} cxd4 {[%emt 0:03:09]} 8. Nxd4 {[%emt 0:01:52]} Nxd4 {[%emt 0:08:48] B12: Caro-Kann: Advance Variation.} 9. Bxd4 {[%emt 0:01:48]} Ne7 {[%emt 0:08:26]} 10. Nd2 {[%emt 0:16:54]} Nc6 {[%emt 0:04:04]} 11. Nb3 $5 {[%emt 0:00:34][%mdl 4] Exploring less charted territory.} Be7 {[%emt 0:06:00]} 12. f4 {[%emt 0:00:54]} Nxd4 $146 {[%emt 0:05:28]} ({Predecessor:} 12... O-O 13. Bf2 Rc8 14. c3 b6 15. Bb5 Bg6 16. Qe2 Qc7 17. Rae1 Nb8 18. g4 h6 {1-0 Frank,M (2311)-Mannermaa,J (2509) Jiri Pelikan mem-B email 1997}) 13. Nxd4 {[%emt 0:00:18]} Qb6 {[%emt 0:18:59]} 14. Kh1 {[%emt 0:02:34]} Be4 {[%emt 0:00:48]} 15. Bb5+ {[%emt 0:02:21]} Kf8 {[%emt 0:00:42]} 16. a4 {[%emt 0:00:49]} Bc5 {[%emt 0:09:05]} 17. a5 {[%emt 0:07:11]} Qc7 {[%emt 0:00:07]} 18. Nb3 {[%emt 0:07:43]} g6 {[%emt 0:02:50]} 19. Bd3 {[%emt 0:04:57]} Kg7 {[%emt 0:01:51]} 20. Bxe4 {[%emt 0:03:42]} dxe4 {[%emt 0:00:07]} 21. Ra4 {[%emt 0:06:52]} Rhd8 {[%emt 0:04:29]} 22. Qe2 {[%emt 0:00:47]} e3 {[%emt 0:01:05]} 23. Rc4 $1 {[%emt 0:02:21]} b6 {[%emt 0:01:45]} 24. axb6 {[%emt 0:02:34]} axb6 {[%emt 0:00:10]} 25. Nxc5 {[%emt 0:00:06]} bxc5 {[%emt 0:00:07]} 26. Qxe3 {[%emt 0:00:09]} Qb6 {[%emt 0:04:40]} 27. b3 {[%emt 0:06:37]} (27. b4 Qa6 28. b5 (28. Qxc5 $2 Rdc8 $19) 28... Qxb5 29. Qxc5 Qa6) 27... Rd4 {[%emt 0:00:17]} 28. Rxd4 {[%emt 0:01:09]} cxd4 {[%emt 0:00:07]} 29. Qd3 {[%emt 0:00:07]} Rc8 {[%emt 0:00:43]} 30. Rd1 {[%emt 0:00:38]} Rc3 {[%emt 0:06:21]} 31. Qxd4 {[%emt 0:01:06]} Qxd4 {[%emt 0:00:22]} 32. Rxd4 {[%emt 0:00:01]} Rxc2 {[%emt 0:00:07]} 33. h4 {[%emt 0:02:03]} Rb2 {[%emt 0:06:48]} 34. b4 {[%emt 0:06:11]} Kf8 {[%emt 0:03:01]} 35. Rd8+ {[%emt 0:02:07]} (35. Rc4 $14) 35... Kg7 $11 {[%emt 0:00:06]} 36. Rd4 {[%emt 0:00:59]} (36. Rb8 $11) 36... Kf8 $14 {[%emt 0:00:10]} 37. Rc4 {[%emt 0:00:32]} Ke7 {[%emt 0:01:12]} 38. Rc7+ $1 {[%emt 0:00:23]} Kf8 {[%emt 0:00:08]} 39. Rb7 $1 {[%emt 0:00:15]} h6 {[%emt 0:00:31]} 40. b5 {[%emt 0:00:00]} (40. g3 $16) 40... Kg7 $2 {[%emt 0:00:00]} (40... g5 $1 $14) 41. b6 $18 {[%emt 0:17:24]} Rb5 {[%emt 0:14:28]} 42. g3 {[%emt 0:09:20]} g5 {[%emt 0:13:59] [#]} (42... Rb2 {might work better.} 43. Kg1 Kg8) 43. h5 $1 $18 {[%emt 0:00:18]} (43. hxg5 hxg5 44. Kg1 (44. fxg5 Rxe5 45. Kg2 Rxg5 $11) 44... g4 $14) 43... g4 {[%emt 0:01:35]} 44. Kg2 {[%emt 0:00:28]} Rb2+ {[%emt 0:02:40]} 45. Kf1 {[%emt 0:00:05]} Kg8 {[%emt 0:00:39]} 46. Ke1 {[%emt 0:00:16]} Rb3 {[%emt 0:00:24]} (46... Kf8 $142 47. Kd1 Kg7) 47. Kd2 {[%emt 0:01:13]} Rxg3 {[%emt 0:00:31]} 48. Rc7 {[%emt 0:00:08]} Rb3 {[%emt 0:00:29]} 49. b7 {[%emt 0:00:02]} Kg7 {[%emt 0:00:14]} 50. f5 {[%emt 0:00:13]} g3 {[%emt 0:00:16]} 51. f6+ {[%emt 0:02:09]} ({Stronger than} 51. fxe6 g2 52. Rc1 (52. exf7 g1=Q 53. f8=R+ Kxf8 54. Rc8+ Ke7 55. Rc7+ Ke6 56. Rc6+ Kxe5 57. b8=R Rxb8 58. Rc2 Qf2+ 59. Kd1 Rd8+ 60. Kc1 Qg1+ 61. Kb2 Rb8+ 62. Kc3 Qd4#) (52. Rxf7+ $2 Kg8 $19) 52... Rxb7 $11 (52... fxe6 53. Rg1 $11)) 51... Kh7 {[%emt 0:00:23]} 52. Ke2 {[%emt 0:00:58]} Rb2+ {[%emt 0:00:47] [#]} 53. Kf1 $1 {[%emt 0:00:14]} Kg8 {[%emt 0:01:00]} 54. Kg1 {[%emt 0:00:31]} Rb1+ {[%emt 0:00:31]} 55. Kg2 {[%emt 0:00:10]} Rb3 {[%emt 0:00:13]} 56. Rd7 {[%emt 0:00:41]} Rb2+ {[%emt 0:00:16]} 57. Kxg3 {[%emt 0:00:33]} Kh7 {[%emt 0:00:17]} 58. Rxf7+ {[%emt 0:00:46]} 1-0